Cogmind - Beta 13 @@@ ROGUE MODE // 2024.04.02 @ 16:53:22 Player: SYPIAC Result: Destroyed by Y1-ZG5(R) with Subdweller Beam Cannon Performance ------------- Evolutions (0) 0 Regions Visited (2) 400 Robots Destroyed (23) 115 Value Destroyed (482) 482 Prototype IDs (0) 0 Alien Tech Used (0) 0 Bonus (0) 0 TOTAL SCORE: 997 Bonus ------- None Cogmind --------- Core Integrity 0/250 Matter 280/300 Energy 100/100 System Corruption 0% Temperature Cool (9) Movement Rolling (90) Location -10/Subcaves Parts ------- > --- POWER (1) -------- (None) > --- PROPULSION (2) --- Armored Wheel Armored Wheel > --- UTILITY (2) ------ Medium Storage Unit Light Armor Plating > --- WEAPON (2) ------- Subdweller Beam Cannon Flail > --- INVENTORY (10) --- Light Ion Engine Armored Wheel Armored Wheel Structural Scanner Targeting Computer Makeshift Hacking Suite Makeshift System Shield Particle Cannon Grenade Launcher Flail Peak State ------------ > --- POWER ------------ Light Nuclear Core > --- PROPULSION ------- Armored Wheel Armored Wheel > --- UTILITY ---------- Medium Storage Unit Structural Scanner > --- WEAPON ----------- Particle Cannon Flail > --- INVENTORY -------- Light Ion Engine Armored Wheel Armored Wheel Sensor Array Targeting Computer Light Armor Plating Light Armor Plating Grenade Launcher Flail [Rating: 14] Favorites ----------- Power Light Nuclear Core Engine Light Ion Engine Power Core Light Nuclear Core Propulsion Light Treads Treads Light Treads Wheel Armored Wheel Utility Medium Storage Unit Device Structural Scanner Storage Medium Storage Unit Protection Light Armor Plating Weapon Grenade Launcher Energy Cannon Particle Cannon Ballistic Gun Shotgun Launcher Grenade Launcher Impact Weapon Flail Build | -11 -10 -10 ------- Run | Yrd Mat Sub Slots Evolved . | . . . Power . | . . . Propulsion . | . . . Utility . | . . . Weapon . | . . . Parts Attached 27 | 7 16 4 Power 3 | 2 1 . Engine 2 | 2 . . Core 1 | . 1 . Reactor . | . . . Propulsion 7 | 2 5 . Treads 5 | 2 3 . Leg . | . . . Wheel 2 | . 2 . Hover . | . . . Flight . | . . . Utility 6 | 1 4 1 Device 2 | . 2 . Storage 2 | 1 1 . Processor . | . . . Hackware . | . . . Protection 2 | . 1 1 Artifact . | . . . Weapon 11 | 2 6 3 Energy Gun . | . . . Energy Cannon 2 | . . 2 Ballistic Gun 4 | 2 2 . Ballistic Cannon . | . . . Launcher 4 | . 3 1 Special Weapon . | . . . Impact Weapon 1 | . 1 . Slashing Weapon . | . . . Piercing Weapon . | . . . Special Melee Weapon . | . . . Unidentified Prototypes . | . . . Parts Lost 2 | . 1 1 Power 2 | . 1 1 Propulsion . | . . . Utility . | . . . Weapon . | . . . Highest Loss Streak 1 | . 1 1 To Critical Strikes . | . . . Average Slot Usage (%) 95 | . 95 95 Core 11 | . 12 9 Treads 17 | . 27 . Wheel 10 | . . 28 Device 8 | . 6 10 Storage 14 | . 14 14 Protection 3 | . 2 3 Energy Cannon 1 | . . 5 Ballistic Gun 7 | . 12 . Launcher 9 | . 9 8 Impact Weapon 9 | . 6 14 Naked Turns . | . . . Heaviest Build 24 | 10 24 22 Greatest Support 40 | 40 40 24 Greatest Overweight (x) 6 | . 6 . Average Overweight (x) . | . . . Largest Inventory Capacity 10 | 8 10 10 Average Capacity 9 | 6 9 10 Most Carried 10 | 2 10 10 Average Carried 7 | . 7 9 Final Capacity 10 | 8 10 10 Final Carried 10 | 2 9 10 Class Distribution -------------------- 87% | Mutant 12% | Scavenger-Mutant Dominant Class ---------------- Mutant | -10/Materials Mutant | -10/Subcaves Resources | -11 -10 -10 ----------- Run | Yrd Mat Sub Matter Collected 618 | 267 251 100 Remotely . | . . . Salvage Created 705 | . 495 210 Parts 37 | . 30 7 Haulers Intercepted 1 | . 1 . Recyclers Shooed . | . . . Parts Field Recycled . | . . . Retrieved Matter . | . . . Parts Self-Destructed 9 | . . 9 Prevented . | . . . Kills | -11 -10 -10 ------- Run | Yrd Mat Sub Combat Hostiles Destroyed 13 | . 8 5 Melee 1 | . 1 . Guns 3 | . 3 . Cannons 2 | . . 2 AOE 3 | . 3 . Classes Destroyed 9 | . 8 1 Worker 3 | . 3 . Builder 2 | . 2 . Hauler 1 | . 1 . Recycler 1 | . 1 . Operator 2 | . 2 . Watcher 1 | . 1 . Swarmer 3 | . 3 . Grunt 5 | . 5 . Subdweller 5 | . . 5 Best Kill Streak 6 | . 6 2 Combat Bots Only 3 | . 3 2 Max Kills in Single Turn 2 | . 2 1 Gunslinging . | . . . Exploded 1 | . 1 . Melee 1 | . 1 . Uniques/NPCs Destroyed . | . . . Combat | -11 -10 -10 -------- Run | Yrd Mat Sub Hostile Shots Fired 75 | . 54 21 Missed 18 | . 13 5 Damage Taken 913 | . 538 375 Core 254 | . 89 165 Absorbed by Shields . | . . . Regen/Repaired (Parts) 80 | . 80 . Core Remaining (%) 100 | 100 . . Volleys Fired 54 | . 48 6 Largest 2 | . 2 1 Hottest 68 | . 50 68 Shots Fired 86 | . 80 6 Gun 73 | . 73 . Cannon 6 | . . 6 Launcher 7 | . 7 . Special . | . . . Kinetic 73 | . 73 . Thermal 6 | . . 6 Explosive 7 | . 7 . Electromagnetic . | . . . Robot Hit Streak 19 | . 19 6 Robot Miss Streak 4 | . 4 . Penetration Max . | . . . Secondary Targets . | . . . Shots Hit Robots 73 | . 55 18 Core Hits 28 | . 26 2 Critical Kills . | . . . Critical Parts Destroyed 6 | . 2 4 Critical Strikes 6 | . 2 4 Smash 6 | . 2 4 Melee Attacks 37 | . 15 22 Impact 37 | . 15 22 Slashing . | . . . Piercing . | . . . Sneak Attacks 4 | . 4 . Combat Hostiles . | . . . Follow-up Attacks . | . . . Damage Inflicted 1608 | . 1139 469 Guns 437 | . 437 . Cannons 102 | . . 102 Explosions 314 | . 314 . Melee 755 | . 388 367 Ramming . | . . . Kinetic 437 | . 437 . Thermal 102 | . . 102 Explosive 314 | . 314 . Electromagnetic . | . . . Impact 755 | . 388 367 Slashing . | . . . Piercing . | . . . Highest Corruption . | . . . Average Corruption . | . . . Corruption Purged . | . . . Corruption Blocked . | . . . Overload Shots . | . . . Overflow Damage 389 | . 248 141 Projectiles . | . . . Explosions . | . . . Melee 389 | . 248 141 Knockbacks 2 | . 1 1 Impact 2 | . 1 1 Kinetic . | . . . Secondary . | . . . Self-Inflicted Damage . | . . . Shots . | . . . Rammed . | . . . Targets Rammed . | . . . Kicked . | . . . Crushed . | . . . Highest Temperature 43 | . 43 2 Average Temperature 9 | . 9 2 Received Heat Transfer 267 | . 207 60 Siege Activations . | . . . Robots Corrupted . | . . . Combat Hostiles . | . . . Parts Fried 7 | . 6 1 Impact Corruptions 8 | . 4 4 Robots Melted . | . . . Combat Hostiles . | . . . Parts Melted 2 | . . 2 Heat Transferred 185 | . . 185 Parts Sabotaged . | . . . Parts Stolen . | . . . Parts Stripped . | . . . Power Chain Reactions . | . . . Alert | -11 -10 -10 ------- Run | Yrd Mat Sub Peak Influence 162 | . 162 . Initial . | . . . Average 54 | . 58 . Maximum Alert Level . | . . . Low Security (%) 100 | 100 100 . Level 1 . | . . . Level 2 . | . . . Level 3 . | . . . Level 4 . | . . . Level 5 . | . . . High Security . | . . . Max Security . | . . . Squads Dispatched 3 | . 3 . Investigation . | . . . Extermination . | . . . Reinforcement 3 | . 3 . Assault . | . . . Garrison . | . . . Intercept . | . . . Searches Triggered . | . . . Construction Impeded . | . . . Haulers Reinforced . | . . . Active Scanning Responses . | . . . Cargo Convoy Interrupts . | . . . Stealth | -11 -10 -10 --------- Run | Yrd Mat Sub Distress Signals 2 | . 2 . Communications Jammed . | . . . Distress Signals . | . . . Times Spotted 23 | . 14 9 Peak Tracking Total 4 | . 4 2 Tactical Retreats 1 | . . 1 Traps | -11 -10 -10 ------- Run | Yrd Mat Sub Traps Triggered 3 | . 2 1 Indirectly . | . . . Trap Hack Attempts . | . . . Triggered . | . . . Disarmed . | . . . Reprogrammed . | . . . Reused . | . . . Traps Extracted . | . . . Installed . | . . . Triggered . | . . . Machines | -11 -10 -10 ---------- Run | Yrd Mat Sub Machines Disabled . | . . . Max in Single Turn . | . . . Machines Repaired . | . . . Machines Dismantled . | . . . Machines Sabotaged . | . . . Overloaded Fab Kills . | . . . Hacking | -11 -10 -10 --------- Run | Yrd Mat Sub Machines Accessed 7 | . 6 1 Terminals 4 | . 4 . Fabricators . | . . . Repair Stations 1 | . 1 . Recycling Units 1 | . 1 . Scanalyzers . | . . . Garrison Access . | . . . Total Hacks 19 | . 15 4 Successful 15 | . 11 4 Failed 4 | . 4 . Catastrophic . | . . . Database Lockouts . | . . . Manual 12 | . 9 3 Terminals 9 | . 9 . Fabricators . | . . . Repair Stations 3 | . 3 . Recycling Units 3 | . 3 . Scanalyzers . | . . . Garrison Access . | . . . Terminal Hacks 8 | . 4 4 Record 4 | . . 4 Terminal Index 1 | . 1 . Alert Level 2 | . 2 . Hauler Manifests 1 | . 1 . Fabricator Hacks . | . . . Repair Station Hacks 2 | . 2 . Scan Component 1 | . 1 . Repair 1 | . 1 . Recycling Unit Hacks 1 | . 1 . Report Inventory 1 | . 1 . Scanalyzer . | . . . Garrison Access Hacks . | . . . Unauthorized Hacks 4 | . 4 . Terminals 3 | . 3 . Botnet 3 | . 3 . Fabricators . | . . . Repair Stations . | . . . Recycling Units 1 | . 1 . Monitor 1 | . 1 . Scanalyzers . | . . . Garrison Access . | . . . Data Cores Recovered . | . . . Used . | . . . Hacking Detections 5 | . 5 . Full Trace Events 1 | . 1 . Feedback Events . | . . . Feedback Blocked . | . . . Robot Schematics Acquired . | . . . Robots Built . | . . . Authchips . | . . . Time . | . . . Total Robot Build Rating . | . . . Part Schematics Acquired . | . . . Parts Built . | . . . Authchips . | . . . Time . | . . . Total Part Build Rating . | . . . Parts Repaired 1 | . 1 . Time 26 | . 26 . Parts Recycled . | . . . Recycled Matter . | . . . Retrieved Matter . | . . . Retrieved Components . | . . . Parts Scanalyzed . | . . . Part Schematics Acquired . | . . . Parts Damaged . | . . . Bothacking | -11 -10 -10 ------------ Run | Yrd Mat Sub Used RIF Installer . | . . . Robots Hacked . | . . . Non-combat . | . . . Combat . | . . . Robot Hacks Applied . | . . . Relay Couplers Released . | . . . Fabnet Peak Effective % . | . . . Robots Rewired . | . . . Allies Hacked . | . . . Hacks Repelled . | . . . Allies | -11 -10 -10 -------- Run | Yrd Mat Sub Total Allies . | . . . Largest Group . | . . . Highest-Rated Group . | . . . Highest-Rated Ally . | . . . Total Orders . | . . . Ally Attacks . | . . . Total Damage . | . . . Kills . | . . . Allies Corrupted . | . . . Allies Melted . | . . . Intel | -11 -10 -10 ------- Run | Yrd Mat Sub Robot Analysis Total . | . . . Derelict Logs Recovered 1 | . . 1 Drone Launches . | . . . Drone Recoveries . | . . . Exploration | -11 -10 -10 ------------- Run | Yrd Mat Sub Turns Passed 2038 | 76 1232 730 Spaces Moved 1351 | 42 608 701 Core 3 | 2 1 . Treads 619 | 40 579 . Legs . | . . . Wheels 729 | . 28 701 Hover . | . . . Flight . | . . . Fastest Speed 50 | 50 90 90 Average Speed 122 | 154 157 90 Slowest Speed 350 | 160 350 90 Overloaded Moves . | . . . Propulsion Burnouts . | . . . Robots Hopped . | . . . Cave-ins Triggered . | . . . Exploration Rate (%) 47 | 4 93 46 Regions Visited 2 Branch Regions 1 Pre-discovered Areas . | . . . Known Exits Taken . | . . . Unknown Exits Taken 2 | 1 1 . Scrap Searched 6 | . . 6 Spaces Dug 12 | . 7 5 Terrain Destroyed 56 | . 51 5 Melee 12 | . 7 5 Projectile . | . . . AOE 44 | . 44 . Terrain Rammed . | . . . Walls Destroyed . | . . . Machines Disabled . | . . . Actions | -11 -10 -10 --------- Run | Yrd Mat Sub Total 1607 | 50 797 760 Wait 97 | . 77 20 Move 1349 | 41 607 701 Hop . | . . . Pick Up 19 | 1 14 4 Fast Attach 14 | 7 7 . Attach 2 | . 2 . Detach 7 | 1 6 . Swap 11 | . 7 4 Drop 17 | . 14 3 Fire 54 | . 48 6 Melee 37 | . 15 22 Ram . | . . . Kick . | . . . Crush . | . . . Escape Stasis . | . . . Rewire . | . . . Trap . | . . . Miscellaneous . | . . . Route ------- -11/Scrapyard -10/Materials (discovered 5 exits: [*Mat x3] / [*Min] / *Sub) -10/Subcaves (discovered 3 exits: Mat x2 / Rec) History --------- Turn | Location | Event 7 | -11/Scrapyard | Discovered new exit (range 16) 77 | -11/Scrapyard | Entered Materials 362 | -10/Materials | Build established: Mutant 416 | -10/Materials | Discovered new exit (range 8) 613 | -10/Materials | Discovered new exit (range 11) 653 | -10/Materials | Repaired Lgt. Treads 763 | -10/Materials | Discovered new exit (range 3) 1158 | -10/Materials | Discovered new exit (range 5) 1287 | -10/Materials | Discovered new exit (range 5) 1309 | -10/Materials | Entered Subcaves 1337 | -10/Subcaves | Visited Clippyterm 1340 | -10/Subcaves | Identified exit to Materials 1340 | -10/Subcaves | Identified exit to Recycling 1398 | -10/Subcaves | Core integrity fell below 50% 1491 | -10/Subcaves | Ambushed by Subdwellers from Twisted Machinery 1513 | -10/Subcaves | A swath of the cavern ceiling suddenly collapsed 1602 | -10/Subcaves | Shifting Twisted Machinery released Barrage Gun 1810 | -10/Subcaves | Core integrity fell below 20% 1920 | -10/Subcaves | Shifting Twisted Machinery released Sub. Beam Cannon 2039 | -10/Subcaves | Destroyed by Y1-ZG5(R) with Subdweller Beam Cannon Last Messages --------------- 01821_ Searching scrap... 01821_ Found Mak. System Shield. 01821_ Found 13 Matter. 01824_ Searching scrap... 01824_ Found Sub. Beam Cannon. 01824_ Found Mak. Hacking Suite. 01824_ Found 20 Matter. 01826_ Acquired Mak. System Shield. 01832_ Dropped Lgt. Armor Plating. 01832_ Acquired Mak. Hacking Suite. 01833_ Acquired 10 matter. Sub. Beam Cannon falls loose from the Twisted Machinery. 01930_ Dropped Sensor Array. 01930_ Acquired Sub. Beam Cannon. 02034_ Y1-ZG5(R) suffers critical hit (Smash). 02034_ Destroyed Sub. Optics. 02034_ Y1-ZG5(R) system corrupted by crushing effect. 02035_ Y1-ZG5(R) misfires. Map ----- +----------------------------------------------------+ | ?????????????????????????????????????????????????? | | ?????????????????????????????????????????????????? | | ?????????????????????????????????????????????????? | | ?????????????????????????????????????????????????? | | ?????????????????????????????????????????????????? | | ?????????????????????????????????????????????????? | | ?????????????????????????????????????????????????? | | ?????????????????????????????????????????????????? | | ?????????????????????????????????????????????????? | | ?????????????????????????????????????????????????? | | ?????????????????????????????????????????????????? | | ??????????????? ?????????????????????????????????? | | ????????????? ???????????????? ???????????????? | | ????????????? ??????????????? #?????????????? | | ????????????? #??????????????? ## ???????????? | | ????????????? ??????????????? ???????????? | | ????????????? ??????????????? ??????????? | | ????????????? ??????????????? ???????????? | | ????????????? ??????????????? ????????????? | | ???????????## ??????????????? #?????????????? | | ??????????## #??????????????? #?????????????? | | ??????##### ##????????????? #?????????????? | | ??????# ##???????????? #?????????????? | | ??????# ###????????? ???????????????? | | ??????# ########## #???## # ?????????? | | ??????# # # ##@R; # ?????????? | | ??????## R #?????????????? | | ????#### ## # ##?????????????? | | ##### ## # # ## # ####???#??????????????? | | ### ##### ######?????????????????????? | | ### ### ###????????????????????????? | | ## #######??????????????????? | | ## #??????????????????? | | ## ### #??????????????????? | | #### ### ### ### ##??????????????????? | | ???# ## ##?###?####???????????????????? | | ??## ## ##????????????????????????????? | | ??# #????????????????????????????? | | ## ### ##????????????????????????????? | | ### ##?# #####?????????????????????????????? | | #?##???# ##?????????????????????????????????? | | ???????## ##?????????????????????????????????? | | ?????###### #?????????????????????????????????? | | ????## ### #?????????????????????????????????? | | ????# #?????????????????????????????????? | | ????# ##?????????????????????????????????? | | "### #??????????????????????????????????? | | "#?### #??????????????????????????????????? | | # "#???# ####??????????????????????????????????? | | ??"???# ##?????????????????????????????????????? | +----------------------------------------------------+ Best States ------------- Heat Dissipation 25 Energy Generation 14 Energy Capacity 160 Matter Stores 300 Matter Capacity 300 Sight Range 16 Robot Scan Range 14 Terrain Scan Density 10 Armor Coverage 150 Evasion (%) 42 Recoil Reduction 2 Item Schematics ----------------- None Robot Schematics ------------------ None Fabricated ------------ Nothing Alien Tech Used ----------------- None Achievements -------------- None Challenges ------------ None Game ------ Seed SystemWeldingVibroblade Manual? 0 Play Time 00:26:20 Cumulative 19.2 hours Start 2024.04.02 @ 16:28:28 End 2024.04.02 @ 16:53:22 Sessions 1 Manual Loads 0 Difficulty Rogue Special Mode None Game No. 9 Rogue 9 Adventurer 0 Explorer 0 Win Type - Total 0 Types 0/0/0/0/0/0/0/0/0 Lore% 22 Gallery% 25 Achievement% 28 Wizard Run 0 Options --------- Layout 1 ASCII 0 Keyboard 0 Movement Numpad Keybinds 0 Fullscreen 2 Font 24/Terminus Map View 50x35 Zoom Use 0% Tactical HUD 1 Map Filters NONE Filters NONE Steam 1 RUN: b1a0ffc3-8d57-4602-a7e3-d851040e3a1b